fUSD/lending_fUSD_20250214
["ID","MTS","AMOUNT","RATE_DAILY","PERIOD"]
[353057354,1739530266130,-1015.0,0.00018584,2]
[353057355,1739530266142,-154.58,0.000186,2]
[353057356,1739530266154,-154.58,0.000186,2]
[353057357,1739530266164,-1000.0,0.0001863,3]
[353057358,1739530266174,-290.15903051,0.00018654,3]
[353057359,1739530266186,-270.32671,0.00018688,7]
[353057360,1739530266196,-2000.0,0.00018751,2]
[353057361,1739530266208,-1015.0,0.00018775,2]
[353057362,1739530266220,-426.84,0.000188,7]
[353057363,1739530266230,-202708.982402,0.0001888,2]
[353057364,1739530266240,-15575.39237644,0.00018888,2]
[353057365,1739530266250,-270.32671,0.00018888,7]
[353057366,1739530266261,-25629.13546904,0.000189,2]
[353057367,1739530266271,-10001.7261423,0.000189,14]
[353057368,1739530266281,-416.76152234,0.000189,7]
[353057369,1739530266290,-500.0,0.000189,6]
[353057370,1739530266300,-1000.0,0.00018904,3]
[353057371,1739530266310,-202.0,0.0001894,2]
[353057372,1739530266321,-1015.0,0.00018967,2]
[353057373,1739530266331,-41606.00002774,0.00019,2]
[353057374,1739530266341,-77126.27803363,0.00019,2]
[353057375,1739530266355,-1318.2551,0.00019,2]
[353057376,1739530266368,-628.58692,0.00019,2]
[353057377,1739530266382,-1262.5636531,0.00019,2]
[353057378,1739530315671,458.45326105,0.00020774,120]
[353057380,1739530717145,499.64,0.0002,120]
[353057381,1739530836284,22257.55001096,0.00020747,60]
[353057393,1739531432390,-334.66218817,8.256e-05,2]
[353057394,1739531432442,-3974.82191183,8.256e-05,2]
[353057395,1739531432452,-200.0,8.35e-05,2]
[353057396,1739531432461,-200.0,8.534e-05,2]
[353057397,1739531432471,-1733.2103,8.699e-05,2]
[353057398,1739531432481,-739.6396624,8.699e-05,2]
[353057399,1739531432490,-3440.01370153,8.836e-05,2]
[353057400,1739531432501,-1559.98629847,8.836e-05,2]
[353057401,1739531432510,-200.0,9.081e-05,2]
[353057402,1739531432520,-240.78,0.00010137,2]
[353057403,1739531432532,-550.0,0.00013,2]
[353057404,1739531432545,-296.0,0.00013408,2]
[353057405,1739531432556,-192.34,0.00013699,2]
[353057406,1739531432565,-1031.15,0.0001371,2]
[353057407,1739531432575,-1000.0,0.0001379,30]
[353057408,1739531432585,-150.0,0.000139,2]
[353057409,1739531432594,-1000.0,0.0001452,3]
[353057410,1739531432604,-1000.0,0.00014794,3]
[353057411,1739531432614,-237.84123517,0.00015,2]
[353057412,1739531432627,-362.15876483,0.00015,2]
[353057413,1739531432637,-1000.0,0.00015068,3]
[353057414,1739531432647,-1000.0,0.00015088,2]
[353057415,1739531432656,-397.31,0.00015205,2]
[353057416,1739531432666,-758.52828876,0.00015342,3]
[353057417,1739531432675,-195.0,0.00015342,2]
[353057418,1739531432686,-151.0,0.000155,2]
[353057419,1739531432695,-23900.0,0.00015697,2]
[353057420,1739531432704,-2059.52,0.00015718,2]
[353057421,1739531432714,-500.0,0.00015828,2]
[353057422,1739531432723,-800.0,0.00015828,2]
[353057423,1739531432733,-800.0,0.00015828,2]
[353057424,1739531432742,-1031.15,0.00015974,2]
[353057425,1739531432751,-200.0,0.00015994,2]
[353057426,1739531432760,-250.0,0.00016061,2]
[353057427,1739531432770,-3731.87,0.00016422,2]
[353057428,1739531432781,-378.51,0.00016658,30]
[353057429,1739531432790,-240.78,0.00016813,2]
[353057430,1739531432800,-1000.0,0.00016974,2]
[353057431,1739531432810,-650.0,0.00017,2]
[353057433,1739531432818,-2525.258,0.00017198,2]
[353057434,1739531432827,-189.777,0.00017198,2]
[353057436,1739531432836,-800.0,0.00017198,2]
[353057438,1739531432845,-800.0,0.00017198,2]
[353057440,1739531432854,-1074.34212639,0.0001764,2]
[353057442,1739531432864,-600.0,0.00017808,2]
[353057444,1739531432874,-491.71,0.00018,2]
[353057446,1739531432883,-2000.0,0.00018082,2]
[353057448,1739531432893,-200.0,0.00018082,2]
[353057450,1739531432902,-1031.15,0.00018238,2]
[353057451,1739531432911,-800.0,0.00018294,2]
[353057452,1739531432921,-800.0,0.00018294,2]
[353057453,1739531432930,-500.0,0.00018568,2]
[353057454,1739531432939,-1889.0,0.00018584,2]
[353057455,1739531432949,-154.58,0.000186,2]
[353057456,1739531432958,-1083.24551141,0.0001862,2]
[353057457,1739531432968,-1050.41877047,0.0001862,2]
[353057458,1739531432978,-2000.0,0.00018751,2]
[353057459,1739531432987,-1889.0,0.00018775,2]
[353057460,1739531432997,-2624.14707847,0.000188,30]
[353057461,1739531433007,-253.79,0.000188,7]
[353057462,1739531433016,-500.0,0.00018847,2]
[353057463,1739531433028,-500.0,0.00018848,2]
[353057464,1739531433039,-1000.0,0.0001886,2]
[353057465,1739531433050,-24771.351107,0.000189,20]
[353057466,1739531433059,-1889.0,0.00018967,2]
[353057467,1739531433070,-500.0,0.00018973,2]
[353057468,1739531433237,-154.86443927,0.00018973,2]
[353057469,1739531433247,-362.64564074,0.00018973,2]
[353057470,1739531433258,-500.0,0.00018999,2]
[353057471,1739531433268,-503.6,0.00018999,2]
[353057472,1739531433278,-500.0,0.00018999,2]
[353057473,1739531433289,-251.0878846,0.00018999,2]
[353057474,1739531433299,-500.0,0.00018999,2]
[353057475,1739531433310,-226.92952797,0.00018999,2]
[353057476,1739531433319,-500.0,0.00018999,2]
[353057477,1739531433328,-676.32,0.00018999,2]
[353057478,1739531433338,-19987.25706289,0.00019,2]
[353057479,1739531433348,-933.8383472,0.00019,20]
[353057480,1739531433358,-91108.59935364,0.00019,2]
[353057481,1739531433368,-13730.76500436,0.00019,2]
[353057482,1739531433381,-7663.34523519,0.00019,2]
[353057483,1739531433402,-500.0,0.00019,2]
[353057484,1739531433414,-500.0,0.00019,2]
[353057485,1739531433426,-1434.30223989,0.00019,2]
[353057486,1739531433437,-9155.98326393,0.00019,2]
[353057487,1739531433453,-299.61000267,0.00019,2]
[353057491,1739531438445,-1497.46491617,0.00019,2]
[353057492,1739531438499,-608.365283,0.00019,2]
[353057675,1739531440392,-517.77124291,0.00019,2]
[353057678,1739531440404,-902.18031963,0.00019,2]
[353057705,1739531440662,-1293.2211969,0.00019,2]
[353057711,1739531440719,-711.58483449,0.00019,2]
[353057728,1739531443550,-254.930664,0.00018905,2]
[353057729,1739531443560,-8672.077416,0.00019,2]
[353057730,1739531443572,-1194.66103295,0.00019,2]
[353057731,1739531443603,-1049.68000014,0.00019,2]
[353057732,1739531443615,-541.52,0.00019,2]
[353057733,1739531443628,-3323.72292204,0.00019,2]
[353057734,1739531443637,-4990.47707796,0.00019,2]
[353057763,1739531446323,-11206.55655329,0.00019,2]
[353057764,1739531446480,-501.28101517,0.00019,2]
[353057765,1739531446593,-1219.02097999,0.00019,2]
[353057766,1739531446603,-4190.97902003,0.00019,2]
[353057778,1739531580022,2000.0,0.0002,120]
[353057789,1739532631574,-500.0,9.4e-05,3]
[353057790,1739532631584,-1000.0,9.5e-05,3]
[353057791,1739532631594,-1600.0,9.6e-05,3]
[353057792,1739532631604,-2100.0,9.7e-05,3]
[353057793,1739532631613,-2600.0,9.8e-05,3]
[353057794,1739532631623,-500.0,9.9e-05,3]
[353057795,1739532631632,-442.20419166,9.999e-05,3]
[353057796,1739532631680,-843.226569,9.999e-05,3]
[353057797,1739532631690,-150.0,9.999e-05,2]
[353057798,1739532631700,-500.0,9.999e-05,2]
[353057799,1739532631711,-500.0,9.999e-05,2]
[353057800,1739532631721,-157.37279759,9.999e-05,2]
[353057801,1739532631731,-61960.53011029,0.0001,2]
[353057802,1739532631787,-291.688,0.0001,2]
[353057803,1739532637477,-490.0000224,0.0001,2]
[353057804,1739532637586,-8595.71340036,0.0001,2]
[353057805,1739532637643,-13980.23118418,0.0001,2]
[353057806,1739532637655,-11921892.7350499,0.0001,2]
[353057807,1739532637709,-2076.34305428,0.0001,2]
[353057808,1739532637724,-23572.34410261,0.0001,2]
[353057809,1739532637736,-19866.42661802,0.0001,2]
[353057810,1739532637747,-740.34726879,0.0001,2]
[353057811,1739532637769,-1202.55802759,0.0001,2]
[353057812,1739532637826,-586.10335212,0.0001,2]
[353057815,1739532637837,-1248.82727493,0.0001,2]
[353057827,1739532639717,-270.54,0.0001,2]
[353057828,1739532639772,-251.57627097,0.0001,2]
[353057829,1739532639783,-811.59000001,0.0001,2]
[353057830,1739532639795,-200334.1094848,0.0001,2]
[353057831,1739532639807,-1092.27862809,0.0001,2]
[353057832,1739532639827,-677.12645,0.0001,2]
[353057833,1739532639839,-576.99,0.0001,2]
[353057834,1739532639884,-7153.73604969,0.0001,2]
[353057848,1739532645534,-1579.530003,0.0001,2]
[353057849,1739532645694,-5528.77680517,0.0001,2]
[353057860,1739533732995,172.32549102,0.00020704,60]
[353057876,1739533831767,-161.74,8.513e-05,2]
[353057877,1739533831776,-1916.4092,8.836e-05,2]
[353057878,1739533831785,-374.258,8.836e-05,2]
[353057879,1739533831794,-1151.47,9.14e-05,2]
[353057880,1739533831803,-863.59662,9.318e-05,2]
[353057881,1739533831812,-200.0,9.365e-05,2]
[353057882,1739533831823,-200.0,9.365e-05,2]
[353057883,1739533831834,-200.0,9.365e-05,2]
[353057884,1739533831843,-23395.41987,9.528e-05,2]
[353057885,1739533831854,-307.31279,9.528e-05,2]
[353057886,1739533831893,-197.26734,9.528e-05,2]
[353057887,1739533831902,-986.27,9.53e-05,2]
[353057888,1739533831911,-438.97,9.53e-05,2]
[353057889,1739533831920,-264.3,9.53e-05,2]
[353057890,1739533831929,-438.97,9.72e-05,2]
[353057891,1739533831938,-986.27,9.72e-05,2]
[353057892,1739533831947,-438.97,9.72e-05,2]
[353057893,1739533831956,-907.44,9.72e-05,2]
[353057894,1739533831966,-150.0,9.781e-05,2]
[353057895,1739533831975,-438.97,9.79e-05,2]
[353057896,1739533831984,-986.27,9.79e-05,2]
[353057897,1739533831993,-437.41,9.79e-05,2]
[353057898,1739533832002,-150.0,9.799e-05,2]
[353057899,1739533832011,-2883.411,9.8e-05,2]
[353057900,1739533832020,-199.266,9.8e-05,2]
[353057901,1739533832028,-150.0,9.8e-05,2]
[353057902,1739533832037,-438.97,9.8e-05,2]
[353057903,1739533832046,-986.27,9.8e-05,2]
[353057904,1739533832055,-775.59,9.8e-05,2]
[353057905,1739533832064,-440.0,9.8e-05,2]
[353057906,1739533832073,-150.0,9.8e-05,2]
[353057907,1739533832082,-986.27,9.8e-05,2]
[353057909,1739533832091,-440.0,9.8e-05,2]
[353057910,1739533832099,-270.93263349,9.8e-05,2]
[353057912,1739533837764,-168.03736651,9.8e-05,2]
[353057913,1739533837773,-1512.36156092,9.8e-05,2]
[353057914,1739533837783,-263.06759456,9.999e-05,2]
[353057915,1739533838132,-156.69119753,9.999e-05,2]
[353057916,1739533838142,-843.226569,9.999e-05,3]
[353057917,1739533838152,-13407.95372838,9.999e-05,2]
[353057918,1739533838162,-552.40399881,9.999e-05,2]
[353057919,1739533838171,-500.0,9.999e-05,2]
[353057920,1739533838181,-500.0,9.999e-05,2]
[353057922,1739533838190,-157.37279759,9.999e-05,2]
[353057923,1739533838200,-26637.00795052,0.0001,2]
[353057957,1739533839711,-4815.976,0.0001,2]
[353057964,1739533839765,-2346.13338225,0.0001,2]
[353058107,1739533842750,-2023.78846249,0.0001,2]
[353058108,1739533842962,-236942.17362435,0.0001,2]
[353058134,1739533845737,-149727.2538046,0.0001,2]
[353058135,1739533845747,-160468.72106798,0.0001,2]
[353058136,1739533845762,-312.76805232,0.0001,2]
[353058223,1739534197278,-1137.72,9.073e-05,2]
[353058224,1739534197303,-12713.998086,9.948e-05,2]
[353058225,1739534197327,-1233.13019377,9.999e-05,2]
[353058226,1739534197350,-150.0,9.999e-05,2]
[353058227,1739534197374,-626.07376645,9.999e-05,2]
[353058228,1739534197398,-200.0,0.0001,2]
[353058229,1739534197421,-443312.02217445,0.0001,2]
[353058230,1739534197446,-214.67501984,0.0001,2]
[353058231,1739534197469,-2622.20407599,0.0001,2]
[353058232,1739534197492,-64314.31249286,0.0001,2]
[353058233,1739534197519,-325.06239186,0.0001,2]
[353058234,1739534197542,-500.0,0.0001,2]
[353058235,1739534197566,-986.27,0.0001,2]
[353058236,1739534197592,-300.0,0.0001,2]
[353058237,1739534197617,-394.81,0.0001,2]
[353058238,1739534197642,-865.17,0.0001,2]
[353058239,1739534197666,-150.0,0.0001,2]
[353058240,1739534197688,-440.0,0.0001,2]
[353058241,1739534197712,-438.97,0.0001,2]
[353058242,1739534197735,-1000.0,0.0001,2]
[353058243,1739534197758,-986.27,0.0001,2]
[353058244,1739534197781,-440.0,0.0001,2]
[353058245,1739534197804,-438.97,0.0001,2]
[353058246,1739534197826,-150.0,0.0001,2]
[353058247,1739534197848,-775.59,0.0001,2]
[353058248,1739534197871,-151.19737243,0.0001,2]
[353058249,1739534197894,-920.21628,0.0001,2]
[353058250,1739534197917,-317.41756786,0.0001,2]
[353058251,1739534197940,-200.0,0.00010121,2]
[353058252,1739534197963,-279.58,0.00010137,2]
[353058253,1739534197986,-154.06,0.00010137,2]
[353058254,1739534198010,-216.7,0.00010137,2]
[353058255,1739534198033,-419.9015576,0.00010218,2]
[353058256,1739534198058,-150.0,0.0001034,2]
[353058257,1739534198081,-500.0,0.000105,2]
[353058258,1739534198106,-986.27,0.000105,2]
[353058259,1739534198129,-438.97,0.000105,2]
[353058260,1739534198153,-151.06,0.000105,2]
[353058261,1739534198176,-150.22,0.000105,2]
[353058262,1739534198202,-150.0,0.000105,2]
[353058263,1739534198226,-249.7,0.000105,2]
[353058264,1739534198249,-150.66,0.000105,2]
[353058265,1739534198273,-150.0,0.000105,2]
[353058266,1739534198297,-419.9015577,0.00010558,2]
[353058267,1739534198321,-200.0,0.00010695,2]
[353058268,1739534198346,-257.29816654,0.000107,2]
[353058269,1739534198370,-162.63,0.00010717,2]
[353058270,1739534198394,-250.0,0.00010749,2]
[353058271,1739534198418,-155.77,0.00010771,2]
[353058272,1739534198443,-1500.0,0.00010837,2]
[353058273,1739534198466,-200.0,0.00010838,2]
[353058274,1739534198493,-153.39134553,0.000109,2]
[353058275,1739534198530,-153.39134549,0.000109,2]
[353058276,1739534198553,-153.39134549,0.000109,2]
[353058277,1739534198577,-169.14414928,0.000109,2]
[353058278,1739534198600,-284.9,0.00010959,2]
[353058279,1739534198623,-150.0,0.00010959,2]
[353058280,1739534198646,-759.87,0.00010959,2]
[353058281,1739534198669,-1000.0,0.00010961,2]
[353058282,1739534198830,-200.0,0.00010999,2]
[353058283,1739534198855,-255.0,0.00010999,2]
[353058284,1739534198880,-900.6,0.00011093,2]
[353058285,1739534198906,-153.39134549,0.00011287,2]
[353058286,1739534198931,-1137.72,0.00011337,2]
[353058287,1739534198957,-325.06239182,0.000114,2]
[353058288,1739534198980,-2751.0,0.00011507,2]
[353058289,1739534199005,-1369.97648582,0.00011689,2]
[353058290,1739534199029,-153.39134549,0.00011749,2]
[353058291,1739534199053,-1265.0,0.00011796,2]
[353058292,1739534199078,-2743.375,0.00011796,2]
[353058293,1739534199102,-908.0,0.00011796,2]
[353058294,1739534199126,-543.792,0.00011796,2]
[353058295,1739534199151,-4027.0,0.00011796,2]
[353058296,1739534199175,-157.907,0.00011796,2]
[353058297,1739534199199,-244.493,0.00011796,2]
[353058298,1739534199223,-3915.0,0.00011796,2]
[353058299,1739534199247,-1109.0,0.00011796,2]
[353058300,1739534199272,-9335.23666619,0.00012111,2]
[353058301,1739534199296,-153.39134549,0.00012211,2]
[353058302,1739534199321,-1000.0,0.00012331,2]
[353058303,1739534199346,-203.33038599,0.0001247,2]
[353058304,1739534199371,-900.6,0.0001248,2]
[353058305,1739534199395,-169.14414928,0.00012567,2]
[353058306,1739534199420,-1369.97648582,0.00012583,2]
[353058307,1739534199443,-4092.08,0.00012603,2]
[353058308,1739534199468,-153.39134549,0.00012674,2]
[353058309,1739534199495,-325.06239182,0.000129,2]
[353058310,1739534199523,-550.0,0.00013,2]
[353058311,1739534199548,-5120.47916302,0.0001305,2]
[353058312,1739534199576,-153.39134549,0.00013136,2]
[353058313,1739534199603,-150.0,0.00013389,2]
[353058314,1739534199631,-150.0,0.00013389,2]
[353058315,1739534199657,-150.0,0.00013389,2]
[353058316,1739534199682,-150.0,0.00013389,2]
[353058317,1739534199706,-1369.97648582,0.00013478,2]
[353058318,1739534199730,-153.39134549,0.00013598,2]
[353058319,1739534199754,-165.74521646,0.00013598,2]
[353058320,1739534199779,-300.0,0.000136,4]
[353058321,1739534199803,-1137.72,0.00013601,2]
[353058322,1739534199827,-187.50670805,0.0001368,2]
[353058323,1739534199852,-548.36743332,0.00013697,3]
[353058324,1739534199879,-203430.61207451,0.00013697,3]
[353058369,1739535032942,-4810.5158,8.836e-05,2]
[353058371,1739535032951,-200.0,8.84e-05,2]
[353058373,1739535032961,-681.8109,8.851e-05,2]
[353058375,1739535032970,-200.0,9.277e-05,2]
[353058377,1739535032979,-200.0,9.719e-05,2]
[353058379,1739535032988,-265.6,0.00010137,2]
[353058381,1739535032997,-1273.0,0.00012164,2]
[353058383,1739535033006,-2025.0,0.00012164,2]
[353058385,1739535033016,-569.0,0.00012164,2]
[353058387,1739535033025,-150.0,0.00012164,2]
[353058389,1739535033035,-638.0,0.00012164,2]
[353058391,1739535033044,-1786.0,0.00012164,2]
[353058393,1739535033054,-2956.0,0.00012164,2]
[353058395,1739535033063,-908.0,0.00012164,2]
[353058397,1739535033072,-1265.0,0.00012164,2]
[353058399,1739535033082,-783.0,0.00012164,2]
[353058401,1739535033092,-539.0,0.00012164,2]
[353058403,1739535033102,-4027.0,0.00012164,2]
[353058405,1739535033112,-556.03719353,0.00012164,2]
[353058923,1739535038230,-451.96280647,0.00012164,2]
[353058925,1739535038239,-744.77371227,0.00012164,2]
[353058937,1739535038389,-578.75100938,0.00012164,2]
[353059034,1739535040161,-2591.47527835,0.00012164,2]
[353059036,1739535040171,-150.0,0.00012164,2]
[353059038,1739535040181,-1109.0,0.00012164,2]
[353059040,1739535040190,-150.0,0.00012304,2]
[353059042,1739535040199,-150.0,0.00012304,2]
[353059044,1739535040208,-150.0,0.00012304,2]
[353059046,1739535040218,-150.0,0.00012304,2]
[353059048,1739535040227,-1000.0,0.00012398,2]
[353059050,1739535040236,-500.0,0.0001244,2]
[353059052,1739535040245,-150.0,0.00012482,2]
[353059054,1739535040253,-1834.34752573,0.00012642,2]
[353059056,1739535040262,-150.0,0.00012646,2]
[353059058,1739535040271,-23900.0,0.0001268,2]
[353059060,1739535040280,-2198.38,0.00012742,2]
[353059062,1739535040289,-250.0,0.00012751,2]
[353059064,1739535040298,-200.0,0.00012756,2]
[353059065,1739535040307,-150.0,0.00012988,2]
[353059067,1739535040316,-550.0,0.00013,2]
[353059069,1739535040325,-373.42,0.00013084,2]
[353059071,1739535040334,-150.0,0.00013329,2]
[353059073,1739535040345,-2867.546,0.00013423,2]
[353059075,1739535040355,-195.307,0.00013423,2]
[353059077,1739535040364,-1392.39408784,0.00013597,2]
[353059079,1739535040374,-172.34695654,0.00013597,2]
[353059081,1739535040383,-153.8501448,0.00013597,2]
[353059083,1739535040392,-308.97180085,0.00013597,2]
[353059085,1739535040401,-2471.63950806,0.00013597,2]
[353059087,1739535040411,-362.94078288,0.00013598,2]
[353059089,1739535040420,-20053.96255874,0.000136,2]
[353059091,1739535040430,-300.0,0.000136,4]
[353059093,1739535040439,-153.8501447,0.00013608,2]
[353059095,1739535040448,-153.8501447,0.00013619,2]
[353059097,1739535040457,-153.8501447,0.0001363,2]
[353059099,1739535040466,-153.8501447,0.00013641,2]
[353059101,1739535040475,-153.8501447,0.00013652,2]
[353059103,1739535040484,-153.8501447,0.00013663,2]
[353059105,1739535040493,-297.5351065,0.00013671,2]
[353059107,1739535040502,-244.2593734,0.00013671,2]
[353059109,1739535040511,-211.2065,0.00013671,2]
[353059111,1739535040520,-500.0,0.00013673,2]
[353059113,1739535040529,-153.8501447,0.00013674,2]
[353059115,1739535040538,-1167.72708,0.0001368,2]
[353059117,1739535040548,-153.8501447,0.00013686,2]
[353059118,1739535040557,-203.33038599,0.00013686,2]
[353059119,1739535040566,-32620.46198757,0.00013695,2]
[353059143,1739535042928,-540.36,0.00012525,2]
[353059144,1739535042937,-2164.54,0.00013695,2]
[353059145,1739535043136,-12722.77824604,0.00013695,2]
[353059146,1739535043146,-188.13626633,0.00013695,2]
[353059147,1739535043156,-176.92027681,0.00013695,2]
[353059148,1739535043165,-338.19995596,0.00013695,2]
[353059149,1739535043175,-274.18371666,0.00013695,3]
[353059150,1739535043185,-223241.95516255,0.00013695,3]
[353059157,1739535045836,-5436.63615987,0.00013695,3]
[353059158,1739535045847,-28965.58794622,0.00013695,3]
[353059159,1739535045888,-10168.10263577,0.00013695,3]
[353059165,1739535129520,200.0,0.00020702,60]
[353059166,1739535130113,200.0,0.00020702,60]
[353059167,1739535143692,1045.48348546,0.00020702,60]
[353059168,1739535143975,1045.48348546,0.00020702,60]
[353059169,1739535144267,1045.48348546,0.00020702,60]
[353059170,1739535144585,1045.48348546,0.00020702,60]
[353059171,1739535151336,11457.37360297,0.00020702,60]
[353059172,1739535151627,11457.37360297,0.00020702,60]
[353059173,1739535151926,11457.37360297,0.00020702,60]
[353059174,1739535152243,11457.37360297,0.00020702,60]
[353059175,1739535184871,200.0,0.00020702,60]
[353059176,1739535185361,200.0,0.00020702,60]
[353059177,1739535194440,414.30689657,0.00020702,60]
[353059178,1739535194770,414.30689657,0.00020702,60]
[353059179,1739535195223,414.30689657,0.00020702,60]
[353059180,1739535195348,414.30689657,0.00020702,60]
[353059181,1739535214537,634.06590608,0.00020702,60]
[353059182,1739535214820,634.06590608,0.00020702,60]
[353059183,1739535215125,634.06590608,0.00020702,60]
[353059184,1739535215597,634.06590608,0.00020702,60]
[353059185,1739535908406,3571.47935123,0.00020701,120]
[353059187,1739535955137,-500.0,8.851e-05,2]
[353059188,1739535955160,-200.0,8.882e-05,2]
[353059189,1739535955181,-3329.8009,8.973e-05,2]
[353059190,1739535955206,-5000.0,8.973e-05,2]
[353059191,1739535967869,6720.21771807,8e-05,2]
[353059197,1739536224094,-304.479,8.973e-05,2]
[353059198,1739536224117,-200.0,9.734e-05,2]
[353059199,1739536224140,-200.0,9.87e-05,2]
[353059200,1739536224162,-501.39208897,9.973e-05,2]
[353059201,1739536224188,-300.0,9.979e-05,2]
[353059202,1739536224216,-8494.12891103,9.98e-05,2]
[353059203,1739536229463,-1000.0,9.98e-05,2]
[353059215,1739536232013,-48061.36184002,9.98e-05,2]
[353059216,1739536232022,-2485.36664638,9.98e-05,2]
[353059217,1739536232165,-500.0,9.999e-05,2]
[353059218,1739536232177,-500.0,9.999e-05,2]
[353059219,1739536232187,-500.0,9.999e-05,2]
[353059220,1739536232201,-401.03266711,9.999e-05,2]
[353059221,1739536232212,-500.0,9.999e-05,2]
[353059222,1739536232222,-500.0,9.999e-05,2]
[353059223,1739536232231,-500.0,9.999e-05,2]
[353059224,1739536232241,-500.0,9.999e-05,2]
[353059225,1739536232250,-500.0,9.999e-05,2]
[353059226,1739536232259,-500.0,9.999e-05,2]
[353059227,1739536232268,-176.92027681,9.999e-05,2]
[353059228,1739536232278,-128398.0218484,0.0001,2]
[353059229,1739536232289,-1198.53637903,0.0001,2]
[353059243,1739536232471,-8559.0486253,0.0001,2]
[353059245,1739536232482,-5196.42540613,0.0001,2]
[353059249,1739536232499,-3319.7235829,0.0001,2]
[353059251,1739536232510,-1565.51600315,0.0001,2]
[353059255,1739536232538,-454.92529219,0.0001,2]
[353059258,1739536232553,-8924.0053856,0.0001,2]
[353059350,1739536237992,-500.0,9.999e-05,2]
[353059351,1739536238003,-998.01127945,9.999e-05,2]
[353059352,1739536238015,-1420.82067879,9.999e-05,2]
[353059353,1739536238024,-4179.24305551,0.0001,2]
[353059354,1739536238055,-1730.02566665,0.0001,2]
[353059355,1739536238066,-14986.47173957,0.0001,2]
[353059356,1739536238079,-727.95966854,0.0001,2]
[353059357,1739536238164,-140477.10336554,0.0001,2]
[353059358,1739536238221,-9632.35661111,0.0001,2]
[353059366,1739536240012,-4217.54015466,0.0001,2]
[353059367,1739536240023,-1199.30233872,0.0001,2]
[353059368,1739536240122,-6036.59941653,0.0001,2]
[353059369,1739536240232,-297.82867182,0.0001,2]
[353059370,1739536240245,-37743.48610143,0.0001,2]
[353059371,1739536240290,-10532.0,0.0001,2]
[353059372,1739536240301,-2536.26362432,0.0001,2]
[353059373,1739536240353,-271.77362758,0.0001,2]
[353059383,1739536243051,-102336.92802707,0.0001,2]
[353059384,1739536243062,-396.18532911,0.0001,2]
[353059385,1739536243215,-224219.39537831,0.0001,2]
[353059386,1739536243227,-5377.6002,0.0001,2]
[353059387,1739536243239,-917.47135174,0.0001,2]
[353059388,1739536243278,-3197.54513101,0.0001,2]
[353059389,1739536243290,-548.915419,0.0001,2]
[353059390,1739536243301,-276.29565446,0.0001,2]
[353059579,1739536246110,-2690.07562,0.0001,2]
[353059593,1739536577822,-379.52,0.00016658,30]
[353059594,1739536577853,-4999620.48,0.00018,30]
[353059595,1739536581788,-1542372.66770701,0.00018,30]
[353059596,1739536581814,-2984.8189,0.0001805,30]
[353059597,1739536581845,-1585.52,0.000189,31]
[353059598,1739536581873,-1585.52,0.000189,31]
[353059599,1739536581902,-1585.52,0.000189,31]
[353059600,1739536581933,-1585.52,0.000189,31]
[353059601,1739536581963,-1585.52,0.000189,31]
[353059602,1739536581993,-379.52,0.00019242,30]
[353059603,1739536582021,-21434.17440836,0.000199,30]
[353059604,1739536582044,-5004.26337,0.0001993,30]
[353059605,1739536582067,-17424.39522545,0.0002,30]
[353059606,1739536582092,-3004.668598,0.0002,31]
[353059607,1739536582116,-2253.05461664,0.0002,30]
[353059608,1739536582142,-150.0,0.00020073,120]
[353059609,1739536582168,-150.0,0.00020113,120]
[353059610,1739536582192,-150.0,0.00020256,120]
[353059611,1739536582215,-1000.0,0.00020301,120]
[353059612,1739536582239,-1000.0,0.00020301,120]
[353059613,1739536582264,-1000.0,0.00020301,120]